Workbook

Sheet 二级利润测算
A1: 合同利润测算表
A2: 合同名称 | B2: 北京市顺义区农业农村局投入品监管平台
A3: 合同收入
A4: 客户名称 | B4: 合同类型 | C4: 合同含税金额 | D4: 税率 | E4: 合同不含税金额 | F4: 销项税金
A5: 北京市顺义区农业农村局 | B5: 软件开发服务 | C5: 815800 | D5: 0.06 | E5: =C5/(1+D5) -> 769622.6415 | F5: =C5-E5 -> 46177.35849 | H5: 0.05 | I5: 40790
B6: 设备采购集成 | C6: 672400 | D6: 0.13 | E6: =C6/(1+D6) -> 595044.2478 | F6: =C6-E6 -> 77355.75221 | H6: 0.07 | I6: 57100
A7: 收入小计 | C7: =SUM(C5:C6) -> 1488200 | E7: =SUM(E5:E6) -> 1364666.889 | F7: =SUM(F5:F6) -> 123533.1107
A8: 分包成本
A9: 供应商名称 | B9: 合同类型 | C9: 合同含税金额 | D9: 税率 | E9: 合同不含税金额 | F9: 进项税金
A10: 北京福通四维科技有限公司 | B10: =B5 -> 软件开发服务 | C10: 758700 | D10: 0.06 | E10: =C10/(1+D10) -> 715754.717 | F10: =C10-E10 -> 42945.28302
B11: =B6 -> 设备采购集成 | C11: 653200 | D11: 0.13 | E11: =C11/(1+D11) -> 578053.0973 | F11: =C11-E11 -> 75146.90265
E12: 0 | F12: 0
A13: 直接成本小计 | C13: =SUM(C10:C12) -> 1411900 | E13: =SUM(E10:E12) -> 1293807.814 | F13: =SUM(F10:F12) -> 118092.1857
A14: 增值税
A15: 税金分类 | F15: 应交增值税
A16: 增值税 | F16: =F7-F13 -> 5440.925029
A17: 资金占用费
A18: 占用资金 | C18: 占用时间（月） | D18: 占用费率（月） | E18: 资金占用费金额
A19: 0 | C19: 0 | D19: 0.01 | E19: =A19*C19*D19 -> 0
A20: 管理费用
A21: 费用分类 | E21: 预计费用金额
A22: 城建税、附加税、地方税 | E22: =F16*0.1 -> 544.0925029
A23: 印花税 | E23: =(E13+E7)*3/10000 -> 797.5424111
A24: 办公费
A25: 差旅费
A26: 招待费
A27: 项目人员薪酬
A28: 其他费用 | E28: 16122 | F28: 中标服务费
A29: 项目费用小计 | E29: =SUM(E22:E28) -> 17463.63491
A30: 项目成本费用合计 | E30: =E29+E13+E19 -> 1311271.449
A31: 合同利润
A32: 利润 | E32: =E7-E30 -> 53395.44006
A33: 利润率 | E33: =E32/E7 -> 0.03912708697

Sheet 三级利润测算
A1: 合同利润测算表（三级公司）
A2: 合同名称 | B2: 北京市顺义区农业农村局投入品监管平台
A3: 合同收入
A4: 客户名称 | B4: 合同类型 | C4: 合同含税金额 | D4: 税率 | E4: 合同不含税金额 | F4: 销项税金
A5: 北京福通互联科技集团有限公司 | B5: =二级利润测算!B5 -> 软件开发服务 | C5: =二级利润测算!C10 -> 758700 | D5: 0.06 | E5: =C5/(1+D5) -> 715754.717 | F5: =C5-E5 -> 42945.28302
B6: =二级利润测算!B6 -> 设备采购集成 | C6: =二级利润测算!C11 -> 653200 | D6: =二级利润测算!D6 -> 0.13 | E6: =C6/(1+D6) -> 578053.0973 | F6: =C6-E6 -> 75146.90265
A7: 收入小计 | C7: =SUM(C5:C6) -> 1411900 | E7: =SUM(E5:E6) -> 1293807.814 | F7: =SUM(F5:F6) -> 118092.1857
A8: 分包成本
A9: 供应商名称 | B9: 合同类型 | C9: 合同含税金额 | D9: 税率 | E9: 合同不含税金额 | F9: 进项税金
A10: 设备供应商 | B10: =B6 -> 设备采购集成 | C10: 653100 | D10: 0.13 | E10: =C10/(1+D10) -> 577964.6018 | F10: =C10-E10 -> 75135.39823
A11: 服务供应商 | B11: 平台开发采购 | C11: 240000 | D11: 0.06 | E11: =C11/(1+D11) -> 226415.0943 | F11: =C11-E11 -> 13584.90566
A12: 服务供应商 | B12: 大屏开发外包 | C12: 110000 | D12: 0.06 | E12: 103773.5849 | F12: 6226.415094
A13: 直接成本小计 | C13: =SUM(C10:C12) -> 1003100 | E13: =SUM(E10:E12) -> 908153.281 | F13: =SUM(F10:F12) -> 94946.71898
A14: 增值税
A15: 税金分类 | F15: 应交增值税
A16: 增值税 | F16: =F7-F13 -> 23145.46669
A17: 资金占用费
A18: 占用资金 | C18: 占用时间（月） | D18: 占用费率（月） | E18: 资金占用费金额
D19: 0.01 | E19: =A19*C19*D19 -> 0
A20: 管理费用
A21: 费用分类 | E21: 预计费用金额
A22: 城建税、附加税、地方税 | E22: =F16*0.1 -> 2314.546669
A23: 印花税 | E23: =(E13+E7)*3/10000 -> 660.5883286
A24: 办公费
A25: 差旅费 | E25: 5000
A26: 招待费 | E26: 5000
A27: 项目人员薪酬 | E27: 350000 | F27: 前期售前投入+软件集成开发，三年运营服务
A28: 其他费用 | E28: 15000
A29: 项目费用小计 | E29: =SUM(E22:E28) -> 377975.135
A30: 项目成本费用合计 | E30: =E29+E13+E19 -> 1286128.416
A31: 合同利润
A32: 利润 | E32: =E7-E30 -> 7679.398314
A33: 利润率 | E33: =E32/E7 -> 0.00593550157

Sheet 合并利润
A1: 合同利润二三级合并测算表
A2: 合同名称 | B2: =二级利润测算!B2 -> 北京市顺义区农业农村局投入品监管平台
A3: 合同收入
C4: 合同含税金额 | D4: 税率 | E4: 合同不含税金额
A5: 收入小计 | C5: =二级利润测算!C7 -> 1488200 | E5: =二级利润测算!E7 -> 1364666.889
A6: 分包成本
A7: 供应商名称 | B7: 合同类型 | C7: 合同含税金额 | D7: 税率 | E7: 合同不含税金额
A8: 第三方分包成本 | C8: =三级利润测算!C13 -> 1003100 | E8: =三级利润测算!E13 -> 908153.281
A9: 管理费用（二、三级合并）
A10: 费用分类 | C10: 二级费用 | D10: 三级费用 | E10: 预计费用金额合计
A11: 城建税、附加税、地方税 | C11: =二级利润测算!E22 -> 544.0925029 | D11: =三级利润测算!E22 -> 2314.546669 | E11: =SUM(C11:D11) -> 2858.639172
A12: 印花税 | C12: =二级利润测算!E23 -> 797.5424111 | D12: =三级利润测算!E23 -> 660.5883286 | E12: =SUM(C12:D12) -> 1458.13074
A13: 办公费 | C13: =二级利润测算!E24 -> 0 | D13: =三级利润测算!E24 -> 0 | E13: 0
A14: 差旅费 | C14: =二级利润测算!E25 -> 0 | D14: =三级利润测算!E25 -> 5000 | E14: 5000
A15: 招待费 | C15: =二级利润测算!E26 -> 0 | D15: =三级利润测算!E26 -> 5000 | E15: 5000
A16: 项目人员薪酬 | C16: =二级利润测算!E27 -> 0 | D16: =三级利润测算!E27 -> 350000 | E16: 350000
A17: 其他费用 | C17: =二级利润测算!E28 -> 16122 | D17: =三级利润测算!E28 -> 15000 | E17: 31122
A18: 项目费用小计 | C18: =二级利润测算!E29 -> 17463.63491 | D18: =三级利润测算!E29 -> 377975.135 | E18: 395438.7699
A19: 资金占用费用 | C19: =二级利润测算!E19 -> 0 | D19: =三级利润测算!E19 -> 0 | E19: =SUM(C19:D19) -> 0
A20: 项目成本费用合计 | E20: =E18+E8+E19 -> 1303592.051
A21: 合同利润
A22: 利润 | E22: =E5-E20 -> 61074.83837
A23: 利润率 | E23: =E22/E5 -> 0.04475439307

Sheet Sheet1
E8: 序号 | F8: 服务名称 | G8: 分项服务内容 | H8: 服务期 | I8: 数量 | J8: 单价 | K8: 总价
E9: 1 | F9: 国家农产品质量安全县创建1172号（农业农村局投入品监管平台） | G9: 投入品监管业务子系统 | H9: 40日历天，总体服务期限为自合同签订之日起至项目审查通过 | I9: 1 | J9: 449400 | K9: 449400
E10: 2 | G10: 公共支撑平台子系统 | I10: 1 | J10: 366400 | K10: 366400
E11: 3 | G11: 汇聚交换机 | I11: 2 | J11: 14200 | K11: 28400
E12: 4 | G12: 虚拟化软件 | I12: 8 | J12: 7782 | K12: 62256
E13: 5 | G13: 虚拟化管理软件 | I13: 1 | J13: 35780 | K13: 35780
E14: 6 | G14: 国产数据库 | I14: 1 | J14: 55230 | K14: 55230
E15: 7 | G15: 国产linux操作系统 | I15: 2 | J15: 16460 | K15: 32920
E16: 8 | G16: 视频接入网关（含管理软件） | I16: 1 | J16: 92300 | K16: 92300
E17: 9 | G17: 监控摄像机 | I17: 40 | J17: 1000 | K17: 40000
E18: 10 | G18: 硬盘录像机 | I18: 20 | J18: 2000 | K18: 40000
E19: 11 | G19: 监控交换机 | I19: 20 | J19: 600 | K19: 12000
E20: 12 | G20: 液晶显示器 | I20: 2 | J20: 3000 | K20: 6000
E21: 13 | G21: 视频监控工程施工 | I21: 1 | J21: 132094 | K21: 132094
E22: 14 | G22: 集成实施 | I22: 1 | J22: 13420 | K22: 13420
E23: 15 | G23: 农资店视频链路租用 | I23: 20 | J23: 2500 | K23: 50000
E24: 16 | G24: 监控链路租用 | I24: 1 | J24: 72000 | K24: 72000
E25: 总价 | F25: 1488200
